fUST/lending_fUST_20241013
["ID","MTS","AMOUNT","RATE_DAILY","PERIOD"]
[340183113,1728787840835,-56582.00954577,0.00034987,5]
[340183114,1728787840849,-125560.351248,0.00034987,5]
[340183115,1728787840860,-439.22133184,0.00034987,7]
[340183116,1728787840869,-174.299,0.00034989,40]
[340183117,1728787840880,-453.63817817,0.00035,2]
[340183118,1728787840889,-9930.88,0.00035,30]
[340183119,1728787840900,-302.42545213,0.00035,2]
[340183120,1728787840909,-302.42545213,0.0003535,2]
[340183121,1728787840918,-302.42545213,0.000357,2]
[340183122,1728787840928,-315.10964771,0.00035755,2]
[340183123,1728787840938,-689.29231525,0.0003598,2]
[340183124,1728787840947,-150.0,0.00036,120]
[340183125,1728787840956,-302.42545213,0.0003605,2]
[340183126,1728787840966,-193.66046304,0.00036299,2]
[340183127,1728787840976,-1000.0,0.00036342,5]
[340183128,1728787840986,-302.42545213,0.000364,2]
[340183129,1728787840995,-468.197011,0.00036602,2]
[340183130,1728787841004,-468.197011,0.00036612,2]
[340183131,1728787841014,-468.197011,0.00036622,2]
[340183132,1728787841025,-468.197011,0.00036631,2]
[340183133,1728787841035,-468.197011,0.00036641,2]
[340183134,1728787841045,-468.197011,0.00036651,2]
[340183135,1728787841055,-468.197011,0.0003666,2]
[340183136,1728787841067,-468.197011,0.0003667,2]
[340183137,1728787841077,-468.197011,0.0003668,2]
[340183138,1728787841087,-468.197011,0.00036689,2]
[340183139,1728787841097,-468.197011,0.00036699,2]
[340183140,1728787841106,-468.197011,0.00036709,2]
[340183141,1728787841115,-468.197011,0.00036718,2]
[340183142,1728787841124,-468.197011,0.00036728,2]
[340183143,1728787841134,-468.197011,0.00036737,2]
[340183144,1728787841143,-468.197011,0.00036747,2]
[340183145,1728787841152,-453.63817819,0.0003675,4]
[340183146,1728787841161,-468.197011,0.00036757,2]
[340183147,1728787841170,-468.197011,0.00036766,2]
[340183148,1728787841180,-468.197011,0.00036776,2]
[340183149,1728787841190,-468.197011,0.00036786,2]
[340183150,1728787841200,-212.29388899,0.00036822,2]
[340183151,1728787841209,-500.0,0.000369,5]
[340183152,1728787841218,-150.112233,0.000369,9]
[340183153,1728787841228,-500.0,0.0003705,5]
[340183154,1728787841237,-435.03524194,0.000371,4]
[340183155,1728787841246,-689.29231525,0.00037211,2]
[340183156,1728787841256,-9930.88,0.000373,30]
[340183157,1728787841268,-500.0,0.0003749,5]
[340183158,1728787841284,-560.0,0.00037503,2]
[340183159,1728787841298,-500.0,0.00037573,5]
[340183160,1728787841307,-150.0,0.00037573,5]
[340183161,1728787841317,-500.0,0.00037573,5]
[340183162,1728787841326,-301.83601455,0.00037573,5]
[340183163,1728787841336,-177.22660455,0.00037573,5]
[340183164,1728787841346,-304.87059952,0.00037573,5]
[340183165,1728787841355,-500.0,0.00037573,5]
[340183166,1728787841365,-500.27822298,0.00037573,5]
[340183167,1728787841374,-500.0,0.00037573,5]
[340183168,1728787841383,-500.0,0.00037573,5]
[340183169,1728787841393,-625.1,0.00037577,2]
[340183170,1728787841403,-73430.2005272,0.00037578,5]
[340183171,1728787841412,-125560.351248,0.00037578,5]
[340183172,1728787841421,-151.0,0.00037579,14]
[340183173,1728787841431,-151.0,0.00037579,14]
[340183174,1728787841440,-150.112233,0.000377,10]
[340183175,1728787841449,-150.0,0.00038,120]
[340183176,1728787841458,-304.39,0.00038,30]
[340183177,1728787841467,-150.0,0.00038173,5]
[340183178,1728787841477,-150.0,0.00038173,5]
[340183179,1728787841561,-151.0,0.00038196,14]
[340183180,1728787841570,-173.201169,0.00038196,14]
[340183181,1728787841580,-146860.401054,0.00038197,5]
[340183182,1728787841589,-125560.351248,0.00038197,5]
[340183183,1728787841599,-151.0,0.00038207,7]
[340183184,1728787841608,-151.0,0.00038207,14]
[340183185,1728787841617,-346.233407,0.00038207,14]
[340183186,1728787841626,-346.233407,0.00038207,14]
[340183187,1728787841635,-290.899228,0.00038207,14]
[340183188,1728787841644,-153.590527,0.00038207,14]
[340183189,1728787841654,-153.590527,0.00038207,14]
[340183190,1728787841663,-151.0,0.00038207,14]
[340183191,1728787841672,-151.0,0.00038207,14]
[340183192,1728787841681,-151.0,0.00038207,14]
[340183193,1728787841692,-389.85097,0.00038207,14]
[340183194,1728787841701,-389.85097,0.00038207,14]
[340183195,1728787841710,-882.251112,0.00038207,14]
[340183196,1728787841719,-882.251112,0.00038207,14]
[340183197,1728787841728,-151.0,0.00038207,14]
[340183198,1728787841740,-151.0,0.00038207,14]
[340183199,1728787841752,-1000.0,0.00038226,120]
[340183200,1728787841762,-1000.0,0.0003827,5]
[340183201,1728787841772,-345.72756834,0.00038273,5]
[340183202,1728787841783,-500.0,0.00038273,5]
[340183203,1728787841793,-501.25373238,0.00038273,5]
[340183204,1728787841802,-1500.0,0.00038346,5]
[340183205,1728787841811,-1449.38,0.00038356,2]
[340183206,1728787841821,-1000.0,0.0003842,5]
[340183207,1728787841831,-689.29231525,0.00038442,2]
[340183208,1728787841840,-221.0,0.00038474,30]
[340183209,1728787841849,-1000.0,0.000385,120]
[340183210,1728787841858,-150.112233,0.000385,6]
[340183211,1728787841867,-1449.38,0.0003863,2]
[340183212,1728787841877,-250.0,0.00038721,5]
[340183213,1728787841886,-250.0,0.00038721,5]
[340183214,1728787841895,-1000.0,0.00038773,120]
[340183215,1728787841905,-321.00393214,0.00038795,7]
[340183216,1728787841917,-151.0,0.00038842,14]
[340183217,1728787841929,-171.249174,0.00038842,14]
[340183218,1728787841939,-171.249174,0.00038842,14]
[340183219,1728787841951,-210.102619,0.00038842,14]
[340183220,1728787841962,-210.102619,0.00038842,14]
[340183221,1728787841972,-151.0,0.00038842,14]
[340183222,1728787841984,-151.0,0.00038842,14]
[340183223,1728787841993,-199.265432,0.00038842,14]
[340183224,1728787842003,-199.265432,0.00038842,14]
[340183225,1728787842016,-195.311765,0.00038842,14]
[340183226,1728787842027,-195.311765,0.00038842,14]
[340183227,1728787842038,-936.76077567,0.0003886,5]
[340183228,1728787842048,-1449.38,0.00038904,2]
[340183229,1728787842058,-1000.0,0.00038942,5]
[340183230,1728787842068,-1000.0,0.00038942,5]
[340183231,1728787842078,-1000.0,0.00038942,5]
[340183232,1728787842088,-1000.0,0.00038942,5]
[340183233,1728787842097,-1000.0,0.00038942,5]
[340183234,1728787842106,-9930.88,0.00039,30]
[340183235,1728787842115,-1000.0,0.00039047,120]
[340183236,1728787842125,-1449.38,0.00039178,2]
[340183237,1728787842135,-159.075059,0.000392,6]
[340183238,1728787842144,-150.112233,0.000392,8]
[340183239,1728787842155,-350.0,0.00039268,5]
[340183240,1728787842164,-415.20545244,0.00039268,5]
[340183241,1728787842173,-1000.0,0.00039321,120]
[340183242,1728787842182,-1449.38,0.00039452,2]
[340183243,1728787842192,-306.0928378,0.000395,120]
[340183244,1728787842201,-3990.58676569,0.00039554,2]
[340183245,1728787842210,-1000.0,0.00039595,120]
[340183246,1728787842219,-150.112233,0.000396,10]
[340183247,1728787842228,-1000.0,0.00039642,5]
[340183248,1728787842237,-151.0,0.00039671,7]
[340183249,1728787842246,-689.29231525,0.00039673,2]
[340183250,1728787842255,-1449.38,0.00039726,2]
[340183251,1728787842268,-500.0,0.00039726,15]
[340183252,1728787842279,-500.0,0.00039726,15]
[340183253,1728787842288,-500.0,0.00039726,15]
[340183254,1728787842298,-500.0,0.00039726,15]
[340183255,1728787842307,-500.0,0.00039726,15]
[340183256,1728787842316,-500.0,0.00039726,15]
[340183257,1728787842325,-500.0,0.00039726,15]
[340183258,1728787842335,-500.0,0.00039726,15]
[340183259,1728787842346,-500.0,0.00039726,15]
[340183260,1728787842356,-476.64107883,0.00039726,15]
[340183261,1728787842365,-151.836906,0.0003977,14]
[340183262,1728787842375,-151.0,0.0003977,7]
[340183263,1728787842384,-151.0,0.0003977,7]
[340183264,1728787842393,-151.0,0.0003977,7]
[340183265,1728787842402,-171.249174,0.0003977,14]
[340183266,1728787842412,-171.249174,0.0003977,14]
[340183267,1728787842421,-171.249174,0.0003977,14]
[340183268,1728787842431,-151.0,0.0003977,14]
[340183269,1728787842440,-171.249174,0.0003977,14]
[340183270,1728787842449,-151.0,0.0003977,14]
[340183271,1728787842460,-171.249174,0.0003977,14]
[340183272,1728787842470,-151.0,0.0003977,14]
[340183273,1728787842480,-171.249174,0.0003977,14]
[340183274,1728787842490,-346.233407,0.0003977,14]
[340183275,1728787842500,-346.233407,0.0003977,14]
[340183276,1728787842509,-346.233407,0.0003977,14]
[340183277,1728787842519,-346.233407,0.0003977,14]
[340183278,1728787842530,-346.233407,0.0003977,14]
[340183279,1728787842539,-346.233407,0.0003977,14]
[340183280,1728787842548,-153.590527,0.0003977,14]
[340183281,1728787842558,-153.590527,0.0003977,14]
[340183282,1728787842567,-210.102619,0.0003977,14]
[340183283,1728787842577,-210.102619,0.0003977,14]
[340183284,1728787842586,-210.102619,0.0003977,14]
[340183285,1728787842595,-153.590527,0.0003977,14]
[340183286,1728787842605,-210.102619,0.0003977,14]
[340183287,1728787842615,-153.590527,0.0003977,14]
[340183288,1728787842624,-210.102619,0.0003977,14]
[340183289,1728787842633,-210.102619,0.0003977,14]
[340183290,1728787842642,-151.0,0.0003977,14]
[340183291,1728787842652,-151.0,0.0003977,14]
[340183292,1728787842662,-151.0,0.0003977,14]
[340183293,1728787842672,-151.0,0.0003977,14]
[340183294,1728787842682,-151.0,0.0003977,14]
[340183295,1728787842691,-151.0,0.0003977,14]
[340183296,1728787842701,-151.0,0.0003977,14]
[340183297,1728787842710,-151.0,0.0003977,14]
[340183298,1728787842720,-151.0,0.0003977,14]
[340183299,1728787842729,-287.012135,0.0003977,14]
[340183300,1728787842739,-151.0,0.0003977,14]
[340183301,1728787842749,-151.0,0.0003977,14]
[340183303,1728787842759,-151.0,0.0003977,14]
[340183304,1728787842768,-199.265432,0.0003977,14]
[340183305,1728787842778,-199.265432,0.0003977,14]
[340183306,1728787842788,-199.265432,0.0003977,14]
[340183307,1728787842798,-199.265432,0.0003977,14]
[340183309,1728787842807,-199.265432,0.0003977,14]
[340183310,1728787842818,-199.265432,0.0003977,14]
[340183311,1728787842827,-195.311765,0.0003977,14]
[340183312,1728787842836,-195.311765,0.0003977,14]
[340183313,1728787842845,-195.311765,0.0003977,14]
[340183314,1728787842855,-389.85097,0.0003977,14]
[340183315,1728787842864,-389.85097,0.0003977,14]
[340183316,1728787842874,-389.85097,0.0003977,14]
[340183317,1728787842942,-195.311765,0.0003977,14]
[340183318,1728787842952,-195.311765,0.0003977,14]
[340183319,1728787842962,-195.311765,0.0003977,14]
[340183320,1728787842972,-389.85097,0.0003977,14]
[340183321,1728787842983,-389.85097,0.0003977,14]
[340183322,1728787842992,-389.85097,0.0003977,14]
[340183323,1728787843002,-882.251112,0.0003977,14]
[340183324,1728787843011,-882.251112,0.0003977,14]
[340183325,1728787843020,-882.251112,0.0003977,14]
[340183326,1728787843031,-882.251112,0.0003977,14]
[340183327,1728787843042,-882.251112,0.0003977,14]
[340183328,1728787843054,-882.251112,0.0003977,14]
[340183329,1728787843064,-151.0,0.0003977,14]
[340183330,1728787843075,-153.102323,0.0003977,14]
[340183331,1728787843085,-151.0,0.0003977,14]
[340183332,1728787843095,-151.0,0.0003977,14]
[340183333,1728787843105,-154.968524,0.0003977,14]
[340183334,1728787843114,-500.0,0.00039773,5]
[340183335,1728787843124,-155.054588,0.00039775,7]
[340183336,1728787843134,-171.249174,0.00039775,14]
[340183337,1728787843143,-171.249174,0.00039775,14]
[340183338,1728787843153,-151.0,0.00039775,14]
[340183339,1728787843162,-171.249174,0.00039775,14]
[340183340,1728787843172,-216.954744,0.00039775,14]
[340183341,1728787843184,-171.249174,0.00039775,14]
[340183342,1728787843194,-346.233407,0.00039775,14]
[340183343,1728787843205,-346.233407,0.00039775,14]
[340183344,1728787843215,-346.233407,0.00039775,14]
[340183345,1728787843225,-346.233407,0.00039775,14]
[340183346,1728787843236,-153.590527,0.00039775,14]
[340183347,1728787843245,-153.590527,0.00039775,14]
[340183348,1728787843256,-210.102619,0.00039775,14]
[340183349,1728787843270,-210.102619,0.00039775,14]
[340183350,1728787843281,-153.590527,0.00039775,14]
[340183351,1728787843290,-153.590527,0.00039775,14]
[340183352,1728787843302,-210.102619,0.00039775,14]
[340183353,1728787843312,-210.102619,0.00039775,14]
[340183356,1728787843323,-153.797713,0.00039775,14]
[340183357,1728787843333,-151.0,0.00039775,14]
[340183358,1728787843346,-151.0,0.00039775,14]
[340183359,1728787843357,-151.0,0.00039775,14]
[340183360,1728787843367,-151.0,0.00039775,14]
[340183361,1728787843380,-151.0,0.00039775,14]
[340183362,1728787843389,-151.0,0.00039775,14]
[340183363,1728787843398,-199.265432,0.00039775,14]
[340183364,1728787843407,-199.265432,0.00039775,14]
[340183365,1728787843417,-199.265432,0.00039775,14]
[340183366,1728787843426,-199.265432,0.00039775,14]
[340183367,1728787843435,-195.311765,0.00039775,14]
[340183368,1728787843444,-195.311765,0.00039775,14]
[340183369,1728787843454,-389.85097,0.00039775,14]
[340183370,1728787843464,-389.85097,0.00039775,14]
[340183371,1728787843473,-195.311765,0.00039775,14]
[340183372,1728787843482,-195.311765,0.00039775,14]
[340183373,1728787843491,-389.85097,0.00039775,14]
[340183374,1728787843500,-389.85097,0.00039775,14]
[340183375,1728787843510,-882.251112,0.00039775,14]
[340183376,1728787843519,-882.251112,0.00039775,14]
[340183377,1728787843529,-882.251112,0.00039775,14]
[340183378,1728787843538,-882.251112,0.00039775,14]
[340183379,1728787843548,-151.0,0.0003978,14]
[340183380,1728787843557,-151.0,0.0003978,14]
[340183381,1728787843566,-151.0,0.0003978,14]
[340183382,1728787843575,-151.0,0.0003978,14]
[340183383,1728787843584,-151.0,0.0003978,14]
[340183384,1728787843592,-151.0,0.0003978,14]
[340183385,1728787843601,-151.0,0.0003978,14]
[340183386,1728787843611,-151.0,0.0003978,14]
[340183387,1728787843620,-151.0,0.0003978,14]
[340183388,1728787843630,-151.0,0.0003978,14]
[340183389,1728787843639,-151.0,0.0003978,14]
[340183390,1728787843648,-231.390015,0.0003978,14]
[340183391,1728787843658,-151.0,0.0003978,14]
[340183392,1728787843667,-151.0,0.0003978,14]
[340183393,1728787843677,-151.0,0.0003978,2]
[340183394,1728787843686,-151.0,0.0003978,2]
[340183395,1728787843696,-155.408013,0.0003978,14]
[340183396,1728787843705,-151.0,0.0003978,14]
[340183397,1728787843715,-151.0,0.0003978,14]
[340183398,1728787843724,-153.24737,0.0003978,14]
[340183399,1728787843734,-3000.0,0.0003978,90]
[340183400,1728787843745,-3000.0,0.0003978,90]
[340183401,1728787843756,-3000.0,0.0003978,90]
[340183402,1728787843766,-3000.0,0.0003978,90]
[340183403,1728787843775,-3000.0,0.0003978,90]
[340183404,1728787843785,-3000.0,0.0003978,90]
[340183405,1728787843795,-3000.0,0.0003978,90]
[340183406,1728787843807,-3000.0,0.0003978,90]
[340183407,1728787843819,-1176.399964,0.0003978,90]
[340183408,1728787843830,-151.0,0.0003978,14]
[340183409,1728787843841,-151.0,0.0003978,14]
[340183410,1728787843853,-151.0,0.0003978,14]
[340183411,1728787843865,-466.281525,0.0003978,14]
[340183412,1728787843877,-466.281525,0.0003978,14]
[340183413,1728787843886,-466.281525,0.0003978,14]
[340183414,1728787843895,-466.281525,0.0003978,14]
[340183415,1728787843905,-466.281525,0.0003978,14]
[340183416,1728787843914,-466.281525,0.0003978,14]
[340183417,1728787843924,-214.488169,0.0003978,14]
[340183418,1728787843933,-1543.252454,0.0003978,14]
[340183419,1728787843943,-214.488169,0.0003978,14]
[340183420,1728787843952,-1543.252454,0.0003978,14]
[340183421,1728787843962,-214.488169,0.0003978,14]
[340183422,1728787843971,-1543.252454,0.0003978,14]
[340183423,1728787843980,-214.488169,0.0003978,14]
[340183424,1728787843992,-214.488169,0.0003978,14]
[340183425,1728787844003,-214.488169,0.0003978,14]
[340183426,1728787844014,-1543.252454,0.0003978,14]
[340183427,1728787844026,-1543.252454,0.0003978,14]
[340183428,1728787844038,-1543.252454,0.0003978,14]
[340183429,1728787844050,-317.174078,0.0003978,14]
[340183430,1728787844062,-151.0,0.0003978,14]
[340183431,1728787844072,-317.174078,0.0003978,14]
[340183432,1728787844083,-151.0,0.0003978,14]
[340183433,1728787844092,-317.174078,0.0003978,14]
[340183434,1728787844101,-317.174078,0.0003978,14]
[340183435,1728787844110,-230.236288,0.0003978,14]
[340183436,1728787844120,-230.236288,0.0003978,14]
[340183437,1728787844129,-230.236288,0.0003978,14]
[340183438,1728787844138,-230.236288,0.0003978,14]
[340183439,1728787844148,-230.236288,0.0003978,14]
[340183440,1728787844157,-230.236288,0.0003978,14]
[340183441,1728787844167,-151.0,0.0003978,14]
[340183442,1728787844178,-151.0,0.0003978,14]
[340183443,1728787844187,-151.0,0.0003978,14]
[340183444,1728787844197,-151.0,0.0003978,14]
[340183445,1728787844267,-151.0,0.0003978,14]
[340183446,1728787844279,-151.0,0.0003978,14]
[340183447,1728787844288,-151.0,0.0003978,14]
[340183448,1728787844298,-151.0,0.0003978,14]
[340183449,1728787844309,-151.0,0.0003978,14]
[340183450,1728787844319,-151.0,0.0003978,14]
[340183451,1728787844328,-151.0,0.0003978,14]
[340183452,1728787844341,-179.408732,0.0003978,14]
[340183453,1728787844351,-151.0,0.0003978,14]
[340183454,1728787844362,-151.0,0.0003978,14]
[340183455,1728787844371,-151.0,0.0003978,14]
[340183456,1728787844382,-151.0,0.0003978,14]
[340183457,1728787844391,-151.0,0.0003978,14]
[340183458,1728787844402,-151.0,0.0003978,14]
[340183459,1728787844412,-151.0,0.0003978,14]
[340183460,1728787844422,-151.0,0.0003978,14]
[340183461,1728787844432,-600.313246,0.0003978,2]
[340183462,1728787844442,-600.313246,0.0003978,2]
[340183463,1728787844454,-600.313246,0.0003978,2]
[340183464,1728787844464,-600.313246,0.0003978,2]
[340183465,1728787844475,-151.0,0.0003978,14]
[340183466,1728787844485,-199.307394,0.0003978,14]
[340183467,1728787844496,-238.357283,0.0003978,14]
[340183468,1728787844506,-238.357283,0.0003978,14]
[340183469,1728787844518,-238.357283,0.0003978,14]
[340183470,1728787844530,-238.357283,0.0003978,14]
[340183471,1728787844540,-151.0,0.00039784,14]
[340183472,1728787844552,-151.0,0.00039784,14]
[340183473,1728787844563,-151.0,0.00039784,14]
[340183474,1728787844572,-151.0,0.00039784,14]
[340183475,1728787844582,-281.784425,0.00039784,14]
[340183476,1728787844591,-151.0,0.00039784,14]
[340183477,1728787844603,-151.0,0.00039784,14]
[340183478,1728787844614,-151.0,0.00039784,14]
[340183479,1728787844625,-151.0,0.00039784,14]
[340183480,1728787844636,-151.0,0.00039784,14]
[340183481,1728787844646,-160.294878,0.00039784,14]
[340183482,1728787844656,-163.940852,0.00039784,2]
[340183483,1728787844665,-151.0,0.00039784,14]
[340183484,1728787844674,-151.0,0.00039784,14]
[340183485,1728787844683,-151.0,0.00039784,14]
[340183486,1728787844692,-151.0,0.00039784,14]
[340183487,1728787844702,-466.281525,0.00039784,14]
[340183488,1728787844711,-466.281525,0.00039784,14]
[340183489,1728787844720,-466.281525,0.00039784,14]
[340183490,1728787844729,-466.281525,0.00039784,14]
[340183491,1728787844739,-214.488169,0.00039784,14]
[340183492,1728787844748,-1543.252454,0.00039784,14]
[340183493,1728787844757,-214.488169,0.00039784,14]
[340183494,1728787844766,-1543.252454,0.00039784,14]
[340183495,1728787844779,-1543.252454,0.00039784,14]
[340183496,1728787844788,-214.488169,0.00039784,14]
[340183497,1728787844797,-1543.252454,0.00039784,14]
[340183498,1728787844806,-214.488169,0.00039784,14]
[340183499,1728787844816,-317.174078,0.00039784,14]
[340183500,1728787844825,-151.0,0.00039784,14]
[340183501,1728787844835,-317.174078,0.00039784,14]
[340183502,1728787844845,-151.0,0.00039784,14]
[340183503,1728787844857,-317.174078,0.00039784,14]
[340183504,1728787844868,-317.174078,0.00039784,14]
[340183505,1728787844878,-230.236288,0.00039784,14]
[340183506,1728787844891,-230.236288,0.00039784,14]
[340183507,1728787844902,-230.236288,0.00039784,14]
[340183508,1728787844912,-230.236288,0.00039784,14]
[340183509,1728787844925,-151.0,0.00039784,14]
[340183510,1728787844936,-151.0,0.00039784,14]
[340183511,1728787844946,-151.0,0.00039784,14]
[340183512,1728787844957,-151.0,0.00039784,14]
[340183513,1728787844967,-205.517006,0.00039784,14]
[340183514,1728787844977,-151.0,0.00039784,14]
[340183515,1728787844986,-151.0,0.00039784,14]
[340183516,1728787844995,-284.781981,0.00039784,14]
[340183517,1728787845006,-151.0,0.00039784,14]
[340183518,1728787845015,-151.0,0.00039784,14]
[340183519,1728787845027,-151.0,0.00039784,14]
[340183520,1728787845036,-151.0,0.00039784,14]
[340183521,1728787845046,-151.0,0.00039784,14]
[340183522,1728787845055,-151.0,0.00039784,14]
[340183523,1728787845063,-600.313246,0.00039784,2]
[340183524,1728787845072,-600.313246,0.00039784,2]
[340183525,1728787845082,-600.313246,0.00039784,2]
[340183526,1728787845091,-600.313246,0.00039784,2]
[340183527,1728787845102,-238.357283,0.00039784,14]
[340183528,1728787845115,-238.357283,0.00039784,14]
[340183529,1728787845125,-238.357283,0.00039784,14]
[340183530,1728787845135,-238.357283,0.00039784,14]
[340183531,1728787845148,-346.233407,0.00039784,14]
[340183532,1728787845159,-346.233407,0.00039784,14]
[340183533,1728787845170,-153.590527,0.00039784,14]
[340183534,1728787845180,-153.590527,0.00039784,14]
[340183535,1728787845190,-151.0,0.00039784,14]
[340183536,1728787845200,-151.0,0.00039784,14]
[340183537,1728787845211,-151.0,0.00039784,14]
[340183538,1728787845222,-199.265432,0.00039784,14]
[340183539,1728787845232,-199.265432,0.00039784,14]
[340183540,1728787845243,-195.311765,0.00039784,14]
[340183541,1728787845252,-389.85097,0.00039784,14]
[340183542,1728787845264,-195.311765,0.00039784,14]
[340183543,1728787845275,-389.85097,0.00039784,14]
[340183544,1728787845284,-882.251112,0.00039784,14]
[340183545,1728787845294,-882.251112,0.00039784,14]
[340183546,1728787845304,-171.249174,0.000398,14]
[340183547,1728787845314,-171.249174,0.000398,14]
[340183548,1728787845324,-210.102619,0.000398,14]
[340183549,1728787845334,-210.102619,0.000398,14]
[340183550,1728787845344,-151.0,0.00039803,14]
[340183551,1728787845354,-151.0,0.00039803,14]
[340183552,1728787845365,-151.0,0.00039803,14]
[340183553,1728787845376,-151.0,0.00039803,3]
[340183554,1728787845387,-151.0,0.00039803,14]
[340183555,1728787845397,-151.0,0.00039803,14]
[340183556,1728787845408,-151.0,0.00039803,14]
[340183557,1728787845417,-151.0,0.00039803,14]
[340183558,1728787845429,-151.0,0.00039803,14]
[340183559,1728787845440,-151.0,0.00039803,14]
[340183560,1728787845501,-151.0,0.00039803,14]
[340183561,1728787845511,-151.0,0.00039803,14]
[340183562,1728787845520,-151.0,0.00039803,14]
[340183563,1728787845530,-346.222467,0.00039803,14]
[340183564,1728787845540,-346.222467,0.00039803,14]
[340183565,1728787845550,-151.940354,0.00039804,14]
[340183566,1728787845559,-151.0,0.00039804,14]
[340183567,1728787845568,-151.0,0.00039804,14]
[340183568,1728787845577,-151.0,0.00039804,14]
[340183569,1728787845586,-151.0,0.00039804,14]
[340183570,1728787845598,-151.0,0.00039804,3]
[340183571,1728787845609,-151.0,0.00039804,14]
[340183572,1728787845619,-151.0,0.00039804,14]
[340183573,1728787845629,-151.0,0.00039804,14]
[340183574,1728787845640,-151.0,0.00039804,14]
[340183575,1728787845651,-151.0,0.00039804,14]
[340183576,1728787845662,-151.0,0.00039804,14]
[340183577,1728787845672,-151.0,0.00039804,14]
[340183578,1728787845685,-346.222467,0.00039804,14]
[340183579,1728787845695,-346.222467,0.00039804,14]
[340183580,1728787845706,-151.0,0.00039813,14]
[340183581,1728787845717,-450.0,0.00039816,5]
[340183582,1728787845729,-151.0,0.00039824,14]
[340183583,1728787845740,-155.126421,0.00039824,14]
[340183584,1728787845750,-151.0,0.00039824,14]
[340183585,1728787845759,-151.0,0.00039824,14]
[340183586,1728787845768,-2485.328354,0.00039824,14]
[340183587,1728787845779,-2485.328354,0.00039824,14]
[340183588,1728787845789,-2485.328354,0.00039824,14]
[340183589,1728787845798,-2485.328354,0.00039824,14]
[340183590,1728787845807,-154.903498,0.00039824,14]
[340183591,1728787845817,-151.0,0.00039824,14]
[340183592,1728787845826,-151.0,0.00039824,14]
[340183593,1728787845835,-151.0,0.00039824,14]
[340183594,1728787845845,-151.0,0.00039824,14]
[340183595,1728787845854,-151.0,0.00039824,14]
[340183596,1728787845863,-151.0,0.00039824,14]
[340183597,1728787845871,-151.0,0.00039824,14]
[340183598,1728787845881,-159.715521,0.00039824,14]
[340183599,1728787845890,-466.281525,0.00039824,14]
[340183600,1728787845899,-466.281525,0.00039824,14]
[340183601,1728787845908,-214.488169,0.00039824,14]
[340183602,1728787845918,-1543.252454,0.00039824,14]
[340183603,1728787845930,-1543.252454,0.00039824,14]
[340183604,1728787845941,-214.488169,0.00039824,14]
[340183605,1728787845951,-151.0,0.00039824,14]
[340183606,1728787845960,-317.174078,0.00039824,14]
[340183607,1728787845970,-317.174078,0.00039824,14]
[340183608,1728787845979,-230.236288,0.00039824,14]
[340183609,1728787845988,-230.236288,0.00039824,14]
[340183610,1728787845998,-151.0,0.00039824,14]
[340183611,1728787846007,-151.0,0.00039824,14]
[340183612,1728787846016,-151.0,0.00039824,14]
[340183613,1728787846028,-155.53140686,0.00039824,14]
[340183614,1728787846038,-153.590527,0.00039824,14]
[340183615,1728787846047,-153.590527,0.00039824,14]
[340183616,1728787846056,-151.0,0.00039824,14]